bitfinex/quotes_SOLUSD_20241007
["timestamp","ask_amount","ask_price","bid_price","bid_amount"]
[1728307911820,22.8772,147.35,147.32,6.7875]
[1728307912021,22.8772,147.35,147.32,6.7877]
[1728307912769,22.8772,147.35,147.33,6.7874]
[1728307912953,22.8772,147.35,147.28,0.12549]
[1728307913234,6.7852,147.38,147.33,6.7873]
[1728307913532,6.7852,147.38,147.34,6.7868]
[1728307913945,6.7852,147.38,147.33,6.7873]
[1728307914128,6.7857,147.37,147.33,6.7873]
[1728307914438,6.7857,147.37,147.32,6.7877]
[1728307916424,6.7857,147.37,147.33,6.7873]
[1728307917413,6.7857,147.37,147.32,6.7877]
[1728307918229,6.7865,147.36,147.28,0.12549]
[1728307918502,6.7865,147.36,147.3,6.7887]
[1728307918503,23.776884,147.36,147.3,6.7887]
[1728307918656,6.7873,147.34,147.3,6.7887]
[1728307920421,20.12549,147.38,147.27,19.63674465]
[1728307920626,20.12549,147.38,147.29,19.38576465]
[1728307920830,20.0,147.38,147.35,6.7862]
[1728307921045,26.7852,147.38,147.34,6.7869]
[1728307921235,20.0,147.38,147.32,6.7877]
[1728307921440,6.7861,147.36,147.32,6.7877]
[1728307921756,20.0,147.38,147.31,6.7883]
[1728307921757,6.7865,147.35,147.31,6.7883]
[1728307922127,20.0,147.38,147.25,15.6384]
[1728307922128,24.027864,147.37,147.25,15.6384]
[1728307922435,6.7871,147.34,147.3,6.7886]
[1728307924229,20.0,147.36,147.25,35.02416465]
[1728307924432,23.902374,147.35,147.25,35.02416465]
[1728307924736,6.7876,147.33,147.29,6.7892]
[1728307924935,6.7881,147.32,147.25,15.6384]
[1728307925164,6.7881,147.32,147.28,6.7896]
[1728307925655,21.9371,147.33,147.26,1.35789623]
[1728307925830,23.776884,147.35,147.27,19.38576465]
[1728307926144,22.7131,147.36,147.32,6.7878]
[1728307926547,6.7866,147.35,147.31,6.7882]
[1728307926849,15.927,147.36,147.3,6.7887]
[1728307927354,6.7891,147.3,147.26,6.7905]
[1728307927527,6.0338,147.32,147.26,6.7906]
[1728307927734,6.789,147.3,147.26,6.7906]
[1728307928049,6.7889,147.3,147.26,6.7903]
[1728307928240,23.776884,147.3,147.21,15.6481]
[1728307928552,16.6171,147.31,147.22,1.3582315]
[1728307928781,16.6171,147.31,147.21,35.03386465]
[1728307929102,16.6171,147.31,147.23,19.38576465]
[1728307929252,16.6171,147.31,147.27,6.79]
[1728307929443,6.7892,147.3,147.21,35.03386465]
[1728307929640,6.7894,147.29,147.25,6.791]
[1728307929857,6.7894,147.29,147.21,15.6481]
[1728307929858,16.6171,147.31,147.22,1.35823902]
[1728307930261,23.4058,147.31,147.27,6.7901]
[1728307930556,6.7888,147.3,147.26,6.7905]
[1728307930853,6.7888,147.3,147.22,1.35823902]
[1728307930854,16.6171,147.31,147.22,0.12549]
[1728307931055,16.6171,147.31,147.19,19.38576465]
[1728307931056,23.776884,147.3,147.19,19.38576465]
[1728307931258,23.776884,147.3,147.22,6.7921]
[1728307931259,6.7907,147.26,147.22,6.7921]
[1728307932587,13.0143,147.27,147.22,6.7921]
[1728307933050,6.7916,147.24,147.17,35.06146465]
[1728307933229,6.7922,147.23,147.14,22.91406145]
[1728307933562,6.7916,147.24,147.2,6.7934]
[1728307933855,15.7069,147.25,147.19,6.7936]
[1728307933856,6.7921,147.23,147.19,6.7936]
[1728307934069,15.7069,147.25,147.14,19.38576465]
[1728307934070,6.7927,147.22,147.14,19.38576465]
[1728307934237,6.793,147.21,147.13,4.3562956]
[1728307934459,44.027864,147.22,147.13,4.3562956]
[1728307934766,44.027864,147.22,147.13,0.8279988]
[1728307935061,6.7949,147.17,147.13,7.6244988]
[1728307935847,16.472,147.18,147.13,7.6244988]
[1728307936034,16.472,147.18,147.13,0.8279988]
[1728307936379,15.9157,147.21,147.14,1.35913493]
[1728307936596,15.9157,147.21,147.2,6.7934]
[1728307936771,6.5544,147.23,147.2,6.7934]
[1728307937071,6.5544,147.23,147.2,6.7933]
[1728307937291,6.5544,147.23,147.19,6.7938]
[1728307938255,6.5544,147.23,147.16,1.35877727]
[1728307938470,6.5544,147.23,147.2,6.7933]
[1728307939136,13.3465,147.23,147.19,6.7938]
[1728307939471,6.5544,147.23,147.16,1.35875716]
[1728307939646,6.5544,147.23,147.2,6.7934]
[1728307940190,6.5544,147.23,147.16,1.35875716]
[1728307940191,6.5544,147.23,147.19,6.7938]
[1728307940374,6.5544,147.23,147.13,20.21376345]
[1728307940569,6.5544,147.23,147.13,0.8279988]
[1728307940570,20.0,147.21,147.13,0.8279988]
[1728307940773,6.794,147.19,147.15,6.7956]
[1728307941080,23.776884,147.2,147.13,0.8279988]
[1728307941265,6.7939,147.19,147.14,6.7958]
[1728307941864,6.7949,147.17,147.13,7.6245988]
[1728307942072,46.342884,147.18,147.13,7.6245988]
[1728307942450,46.342884,147.18,147.14,6.7961]
[1728307942799,46.342884,147.18,147.13,7.6244988]
[1728307943147,39.548184,147.18,147.13,0.8279988]
[1728307943428,6.7958,147.15,147.13,0.8279988]
[1728307943568,6.7962,147.14,147.13,0.8279988]
[1728307943963,6.7958,147.15,147.13,0.8279988]
[1728307944879,6.7962,147.14,147.13,0.8279988]
[1728307945356,50.824064,147.14,147.13,0.8279988]
[1728307947061,43.776884,147.14,147.13,0.8279988]
[1728307947253,50.573084,147.14,147.13,0.8279988]
[1728307947453,50.698574,147.14,147.13,0.8279988]
[1728307947857,50.573084,147.14,147.13,0.8279988]
[1728307951664,43.776884,147.14,147.13,0.8279988]
[1728307951884,6.7957,147.16,147.13,0.8279988]
[1728307952189,23.776884,147.15,147.13,0.8279988]
[1728307952701,20.0,147.15,147.13,0.8279988]
[1728307953192,30.573084,147.14,147.13,0.8279988]
[1728307954463,6.13839,147.17,147.13,0.8279988]
[1728307954791,23.776884,147.16,147.13,0.8279988]
[1728307955167,6.7959,147.15,147.13,0.8279988]
[1728307955570,30.573084,147.14,147.13,0.8279988]
[1728307956492,6.7962,147.14,147.13,0.8279988]
[1728307956695,30.572684,147.15,147.13,0.8279988]
[1728307958496,20.0,147.16,147.13,0.8279988]
[1728307958683,26.7954,147.16,147.13,0.8279988]
[1728307958891,20.0,147.16,147.13,0.8279988]
[1728307959085,26.7956,147.16,147.13,0.8279988]
[1728307959279,20.0,147.16,147.13,0.8279988]
[1728307959631,30.572884,147.15,147.13,0.8279988]
[1728307959819,6.7962,147.14,147.13,0.8279988]
[1728307960041,23.776884,147.15,147.13,0.8279988]
[1728307960186,30.572684,147.15,147.13,0.8279988]
[1728307961080,26.7956,147.16,147.13,0.8279988]
[1728307961285,30.572684,147.15,147.13,0.8279988]
[1728307961482,6.13839,147.17,147.13,0.8279988]
[1728307961483,50.824064,147.14,147.13,0.8279988]
[1728307963406,57.86151398,147.14,147.13,0.8279988]
[1728307963794,50.824064,147.14,147.13,0.8279988]
[1728307963988,50.698574,147.14,147.13,0.8279988]
[1728307964179,20.0,147.14,147.13,0.8279988]
[1728307964691,6.7958,147.15,147.13,0.8279988]
[1728307965075,13.04960723,147.17,147.13,0.8279988]
[1728307965285,6.0129,147.17,147.13,0.8279988]
[1728307965497,6.7962,147.14,147.13,0.8279988]
[1728307966890,6.7959,147.15,147.13,0.8279988]
[1728307969108,30.823464,147.16,147.13,0.8279988]
[1728307969415,6.0129,147.17,147.13,7.6242988]
[1728307969416,12.8078,147.17,147.13,7.6242988]
[1728307969596,22.566,147.18,147.14,6.7961]
[1728307970084,13.0352,147.21,147.17,6.7948]
[1728307970518,6.7935,147.2,147.16,6.7952]
[1728307970805,13.0349,147.21,147.17,6.7947]
[1728307971111,6.2419,147.21,147.13,0.8279988]
[1728307971315,6.794,147.19,147.15,6.7957]
[1728307971515,6.7958,147.15,147.13,0.8279988]
[1728307971881,36.984,147.2,147.13,0.8279988]
[1728307972094,20.0,147.16,147.13,0.8279988]
[1728307972400,26.7956,147.16,147.13,0.8279988]
[1728307975119,23.776884,147.15,147.13,0.8279988]
[1728307975522,30.572784,147.15,147.13,0.8279988]
[1728307976236,6.7962,147.14,147.13,0.8279988]
[1728307976986,30.573084,147.14,147.13,0.8279988]
[1728307977104,30.698574,147.14,147.13,0.8279988]
[1728307977903,30.573084,147.14,147.13,0.8279988]
[1728307978110,23.776884,147.14,147.13,0.8279988]
[1728307978719,30.573084,147.14,147.13,0.8279988]
[1728307978867,6.7959,147.15,147.13,0.8279988]
[1728307979408,36.9862,147.18,147.13,0.8279988]
[1728307979409,20.0,147.16,147.13,0.8279988]
[1728307979610,6.7957,147.16,147.13,0.8279988]
[1728307979804,20.0,147.18,147.13,0.8279988]
[1728307980039,6.7958,147.15,147.13,0.8279988]
[1728307980219,0.12549,147.17,147.13,0.8279988]
[1728307980429,6.7962,147.14,147.13,0.8279988]
[1728307980610,30.698574,147.14,147.13,0.8279988]
[1728307980923,6.7961,147.15,147.13,0.8279988]
[1728307981124,27.0389243,147.18,147.08,5.00325568]
[1728307981125,1.35955688,147.14,147.08,5.00325568]
[1728307981709,6.7955,147.16,147.09,1.35952604]
[1728307981906,1.35955688,147.15,147.09,1.35952604]
[1728307982671,1.35955688,147.15,147.08,5.00325568]
[1728307983026,6.7968,147.13,147.08,5.00325568]
[1728307983333,6.7968,147.13,147.07,6.3063]
[1728307983334,8.15665688,147.12,147.03,6.2874]
[1728307983529,6.7977,147.11,147.03,6.2874]
[1728307983822,1.35955688,147.1,147.04,1.35992502]
[1728307984216,1.35955688,147.1,147.04,17.68652502]
[1728307984622,1.35955688,147.12,147.05,19.43699462]
[1728307984821,1.35955688,147.14,147.06,1.35963447]
[1728307985018,1.35955688,147.14,147.07,19.56248462]
[1728307985929,1.35955688,147.14,147.08,1.35952458]
[1728307986133,1.35955688,147.18,147.09,34.86668462]
[1728307986427,6.7953,147.16,147.1,1.35931637]
[1728307986623,1.35955688,147.15,147.09,15.3042]
[1728307986824,6.7967,147.13,147.06,0.12549]
[1728307987133,1.35955688,147.12,147.06,0.12549]
[1728307987714,1.35955688,147.12,147.06,1.48513183]
[1728307988031,1.35955688,147.13,147.06,0.12549]
[1728307988803,8.15625688,147.13,147.06,0.12549]
[1728307989021,1.35955688,147.12,147.06,0.12549]
[1728307989249,1.35955688,147.12,147.06,1.48513345]
[1728307989628,1.35955688,147.12,147.06,0.12549]
[1728307989826,1.35955688,147.12,147.06,1.48513251]
[1728307990138,1.35955688,147.13,147.06,1.48513251]
[1728307990309,1.35955688,147.13,147.06,1.35975077]
[1728307990632,6.7963,147.14,147.06,0.12549]
[1728307990827,1.35955688,147.13,147.05,34.74119462]
[1728307991024,6.799,147.09,147.02,20.0]
[1728307991220,1.35955688,147.08,147.01,34.99629462]
[1728307991433,1.35955688,147.11,147.01,34.99629462]
[1728307991609,6.7981,147.1,147.01,34.99629462]
[1728307991824,1.35955688,147.09,147.01,34.99629462]
[1728307992145,1.35955688,147.1,147.01,34.99629462]
[1728307992541,1.35955688,147.1,147.02,24.027864]
[1728307992795,1.35955688,147.1,147.01,15.5593]
[1728307993236,6.7986,147.09,147.01,15.5593]
[1728307993534,1.35955688,147.08,147.01,15.5593]
[1728307994031,1.35955688,147.08,147.02,1.36007734]
[1728307994212,6.7984,147.1,147.01,15.5593]
[1728307994412,1.35955688,147.09,147.01,15.5593]
[1728307994612,1.35955688,147.09,147.02,1.36010944]
[1728307994831,1.35955688,147.09,146.99,19.43699462]
[1728307995131,24.027864,147.08,146.98,20.8279988]
[1728307995335,8.15905688,147.07,146.98,0.8279988]
[1728307995910,23.902374,147.08,147.02,19.43699462]
[1728307995911,1.35955688,147.08,147.02,19.43699462]
[1728307996135,1.35955688,147.08,147.03,1.36003734]
[1728307996520,1.35955688,147.08,147.02,19.43699462]
[1728307996853,1.35955688,147.08,147.01,0.12549]
[1728307997047,20.0,147.12,147.01,0.12549]
[1728307997048,6.7986,147.09,147.01,0.12549]
[1728307997347,1.35955688,147.08,147.0,19.43699462]
[1728307997746,8.15885688,147.08,146.98,20.26499342]
[1728307998038,8.15885688,147.08,146.99,0.12549]
[1728307998223,8.15885688,147.08,146.99,1.48571159]
[1728307998428,1.35955688,147.08,147.0,19.43699462]
[1728307998643,1.35955688,147.07,147.01,1.36012774]
[1728307999023,25.13644088,147.09,147.02,19.43699462]
[1728307999235,25.13644088,147.09,147.03,1.36012792]
[1728307999430,25.13644088,147.09,147.02,19.43699462]
[1728307999753,25.13644088,147.09,147.0,19.43699462]
[1728307999944,25.13644088,147.09,147.01,21.36014639]
[1728308000641,1.35955688,147.09,147.02,19.56248462]
[1728308000944,1.35955688,147.11,147.05,20.0]
[1728308001438,1.35955688,147.11,147.06,1.35979412]
[1728308001830,1.35955688,147.1,147.05,20.0]
[1728308002032,1.35955688,147.12,147.05,20.0]
[1728308004226,8.15685688,147.12,147.03,20.0]
[1728308004422,8.15685688,147.12,147.04,1.35990395]
[1728308004653,6.7981,147.1,147.03,20.0]
[1728308004855,1.35955688,147.09,147.02,0.12549]
[1728308005059,1.35955688,147.09,147.01,0.25098]
[1728308005257,8.15845688,147.09,147.0,19.43699462]
[1728308005953,8.15845688,147.09,147.01,1.36011617]
[1728308006336,1.35955688,147.09,147.01,1.36011617]
[1728308006639,1.35955688,147.08,147.01,21.36011617]
[1728308007234,1.35955688,147.08,147.01,20.0]
[1728308007433,1.35955688,147.07,147.0,19.43699462]
[1728308007635,1.35955688,147.09,147.01,0.12549]
[1728308008136,8.15815688,147.09,147.01,0.12549]
[1728308008329,22.96,147.08,147.01,20.0]
[1728308008531,7.72065688,147.07,147.01,20.0]
[1728308009531,7.72065688,147.07,147.02,1.36021625]
[1728308009634,7.72065688,147.07,147.01,20.0]
[1728308010158,7.72065688,147.07,147.02,1.36013316]
[1728308010530,7.72065688,147.07,147.01,20.0]
[1728308010735,7.72065688,147.07,146.98,40.26499342]
[1728308010960,7.72065688,147.07,146.99,1.48571285]
[1728308011130,7.72065688,147.07,147.0,19.43699462]
[1728308011334,7.72065688,147.07,147.01,21.36014721]
[1728308011554,7.72065688,147.07,147.01,20.0]
[1728308011753,14.52015688,147.07,146.99,0.12549]
[1728308011946,7.72065688,147.07,147.01,20.0]
[1728308012157,7.72065688,147.07,147.02,1.36004959]
[1728308012355,7.72065688,147.07,147.01,20.0]
[1728308013012,7.72065688,147.07,146.99,20.12549]
[1728308013235,7.72065688,147.07,147.0,1.36015196]
[1728308013425,7.72065688,147.07,146.99,20.12549]
[1728308014051,14.52015688,147.07,146.99,20.12549]
[1728308014580,14.52015688,147.07,147.0,1.3602521]
[1728308015051,14.52015688,147.07,147.0,1.3603089]
[1728308015853,14.52015688,147.07,146.99,20.0]
[1728308016556,6.7999,147.06,146.99,20.0]
[1728308016677,1.35955688,147.05,147.0,1.36030955]
[1728308016864,1.35955688,147.05,146.99,20.0]
[1728308017850,1.35955688,147.06,147.0,1.36030732]
[1728308018077,1.35955688,147.06,147.0,20.79730194]
[1728308018251,7.72065688,147.07,147.02,19.43699462]
[1728308018575,7.72065688,147.07,147.03,1.36002944]
[1728308019161,7.72065688,147.07,147.02,19.43699462]
[1728308019467,7.72065688,147.07,147.01,20.0]
[1728308020488,7.72065688,147.07,147.02,1.36023041]
[1728308022667,7.72065688,147.07,147.01,20.0]
[1728308023402,7.72065688,147.07,147.02,1.36007039]
[1728308023615,6.3611,147.07,147.02,1.36007039]
[1728308023779,6.3611,147.07,147.03,20.12549]
[1728308023959,6.3611,147.07,147.04,1.35990468]
[1728308024160,7.72065688,147.07,147.03,20.0]
[1728308024359,6.3611,147.07,147.04,1.35998946]
[1728308024661,16.1609,147.08,147.04,1.35998946]
[1728308025454,16.1862,147.12,147.07,19.43699462]
[1728308025887,16.1862,147.12,147.08,1.35945085]
[1728308026066,16.1862,147.12,147.07,19.43699462]
[1728308026412,16.1862,147.12,147.09,19.43699462]
[1728308026603,16.1862,147.12,147.1,1.35942592]
[1728308026803,6.1422,147.15,147.1,21.35942592]
[1728308027260,7.50175688,147.15,147.1,20.0]
[1728308027474,6.1422,147.15,147.11,1.35922126]
[1728308027783,6.1422,147.15,147.11,20.79621588]
[1728308027974,15.1593,147.16,147.11,20.79621588]
[1728308027975,15.1593,147.16,147.13,19.43699462]
[1728308028172,1.35955688,147.18,147.14,1.3590807]
[1728308028888,7.57165688,147.19,147.14,1.3590807]
[1728308029094,7.57165688,147.19,147.15,1.3589648]
[1728308029403,7.57165688,147.19,147.14,1.35898858]
[1728308029566,7.57165688,147.19,147.14,1.35899124]
[1728308030278,7.57165688,147.19,147.14,20.0]
[1728308030583,7.57165688,147.19,147.15,1.35895435]
[1728308030584,6.2121,147.19,147.15,1.35895435]
[1728308030972,16.91395688,147.2,147.15,1.35895435]
[1728308031183,15.5544,147.2,147.16,0.12549]
[1728308031380,1.35955688,147.22,147.15,19.43699462]
[1728308033395,1.35955688,147.22,147.16,1.35877659]
[1728308033972,1.35955688,147.22,147.15,19.43699462]
[1728308035085,6.793,147.21,147.14,20.0]
[1728308035282,8.15305688,147.2,147.14,21.35898152]
[1728308035877,1.35955688,147.2,147.14,21.35898152]
[1728308036084,1.35955688,147.19,147.14,21.35898152]
[1728308037251,1.35955688,147.2,147.14,21.35898152]
[1728308037404,1.35955688,147.2,147.14,20.0]
[1728308037599,8.15335688,147.2,147.12,20.0]
[1728308037774,30.571184,147.19,147.11,19.43699462]
[1728308037975,1.35955688,147.18,147.11,19.43699462]
[1728308038671,1.35955688,147.18,147.12,1.35913551]
[1728308038985,1.35955688,147.19,147.12,21.35913551]
[1728308039902,8.15385688,147.19,147.12,20.0]
[1728308040081,41.24564088,147.18,147.12,1.35927476]
[1728308040601,17.46875688,147.18,147.12,1.35927476]
[1728308041007,17.46875688,147.18,147.1,20.0]
[1728308041294,17.46875688,147.18,147.07,21.6716]
[1728308041295,17.46875688,147.18,147.12,20.0]
[1728308041487,17.46875688,147.18,147.13,1.3591575]
[1728308042612,17.46875688,147.18,147.12,20.0]
[1728308042818,24.26355688,147.18,147.09,19.43699462]
[1728308043126,24.26355688,147.18,147.1,20.0]
[1728308043127,13.1433,147.17,147.1,20.0]
[1728308043332,1.35955688,147.16,147.1,20.0]
[1728308043500,8.15525688,147.16,147.07,34.69649462]
[1728308043697,6.7961,147.15,147.07,19.43699462]
[1728308043880,8.15585688,147.14,147.05,19.43699462]
[1728308044294,1.35955688,147.14,147.05,19.43699462]
[1728308044589,39.317284,147.13,147.03,19.43699462]
[1728308044795,6.3366,147.11,147.03,19.43699462]
[1728308044993,1.35955688,147.1,147.03,19.43699462]
[1728308045191,1.35955688,147.1,147.04,1.35983356]
[1728308045505,7.69615688,147.11,147.05,19.43699462]
[1728308045796,7.69615688,147.11,147.06,1.35974254]
[1728308046201,6.3366,147.11,147.06,1.35974254]
[1728308046422,6.3366,147.11,147.07,19.43699462]
[1728308046579,1.35955688,147.12,147.08,1.35962794]
[1728308047386,1.35955688,147.12,147.05,19.43699462]
[1728308047701,1.35955688,147.12,147.06,21.35966811]
[1728308047900,1.35955688,147.12,147.06,1.35966811]
[1728308048410,1.35955688,147.12,147.06,20.0]
[1728308048794,1.35955688,147.12,147.07,1.35976642]
[1728308048976,1.35955688,147.12,147.07,1.35966078]
[1728308049603,1.35955688,147.12,147.06,20.0]
[1728308049991,1.35955688,147.12,147.04,0.12549]
[1728308050301,8.15695688,147.12,147.04,20.12549]
[1728308050605,1.35955688,147.12,147.05,1.35973878]
[1728308050792,1.35955688,147.12,147.05,20.7967334]
[1728308050993,1.35955688,147.12,147.05,19.43699462]
[1728308051193,1.35955688,147.12,147.06,1.35973859]
[1728308053223,16.89995688,147.13,147.07,19.43699462]
[1728308053601,16.89995688,147.13,147.08,1.35955634]
[1728308053791,16.89995688,147.13,147.08,21.35955634]
[1728308054190,15.5404,147.13,147.08,21.35955634]
[1728308054805,15.5404,147.13,147.08,20.0]
[1728308055190,1.35955688,147.12,147.08,20.0]
[1728308055803,1.35955688,147.12,147.05,19.43699462]
[1728308055999,1.35955688,147.12,147.06,20.12549]
[1728308056203,16.89995688,147.13,147.07,1.35954645]
[1728308056420,15.5404,147.13,147.08,20.0]
[1728308056640,15.5404,147.13,147.09,1.35942335]
[1728308057317,15.5404,147.13,147.08,20.0]
[1728308057511,16.89995688,147.13,147.08,20.0]
[1728308058208,15.5404,147.13,147.09,1.35947133]
[1728308058512,16.89995688,147.13,147.08,20.0]
[1728308058716,15.5404,147.13,147.09,1.35946904]
[1728308059215,15.5404,147.13,147.09,20.79646366]
[1728308059397,15.5404,147.13,147.09,19.43699462]
[1728308059599,16.202,147.17,147.1,21.35934537]
[1728308059793,16.202,147.17,147.13,19.43699462]
[1728308060040,16.202,147.17,147.14,1.35902975]
[1728308060365,6.6197,147.18,147.15,19.43699462]
[1728308060446,6.6197,147.18,147.13,19.43699462]
[1728308060724,6.6197,147.18,147.14,1.35899144]
[1728308063307,6.6197,147.18,147.13,19.43699462]
[1728308063700,6.6197,147.18,147.11,19.43699462]
[1728308064054,1.35955688,147.17,147.12,20.0]
[1728308064393,1.35955688,147.17,147.12,21.35919334]
[1728308065223,1.35955688,147.17,147.12,21.35919394]
[1728308065515,1.35955688,147.17,147.12,21.35919163]
[1728308065721,1.35955688,147.17,147.12,20.0]
[1728308066028,6.796,147.15,147.05,34.98919462]
[1728308066315,1.35955688,147.14,147.05,19.43699462]
[1728308066820,6.2893,147.13,147.06,1.3594727]
[1728308067155,1.35955688,147.12,147.05,19.43699462]
[1728308067425,1.35955688,147.12,147.06,21.35959672]
[1728308068296,6.2893,147.13,147.06,21.35959672]
[1728308068520,6.2893,147.13,147.07,20.92199779]
[1728308069016,6.2893,147.13,147.08,20.0]
[1728308069208,6.2893,147.13,147.09,1.35944379]
[1728308070227,1.35955688,147.12,147.08,20.0]
[1728308070533,1.35955688,147.12,147.06,20.0]
[1728308071401,15.278,147.11,147.06,20.0]
[1728308071626,1.35955688,147.1,147.06,20.0]
[1728308071819,1.35955688,147.1,147.03,19.43699462]
[1728308072331,1.35955688,147.1,147.01,19.43699462]
[1728308072642,8.15795688,147.1,146.99,19.43699462]
[1728308072927,1.35955688,147.1,147.01,19.43699462]
[1728308073116,1.35955688,147.1,147.03,19.43699462]
[1728308073318,1.35955688,147.1,147.04,1.35986833]
[1728308073626,15.278,147.11,147.04,21.35986833]
[1728308074004,15.278,147.11,147.04,20.0]
[1728308074857,1.35955688,147.1,147.04,20.0]
[1728308076421,1.35955688,147.1,147.01,20.0]
[1728308076835,6.4359,147.09,147.01,20.0]
[1728308077227,1.35955688,147.08,147.0,19.43699462]
[1728308077463,15.7632,147.07,147.0,19.43699462]
[1728308077731,1.35955688,147.06,146.98,20.26499342]
[1728308078152,1.35955688,147.06,147.0,19.43699462]
[1728308078310,1.35955688,147.06,147.01,21.36025988]
[1728308078518,1.35955688,147.06,147.01,20.0]
[1728308079642,1.35955688,147.06,147.0,19.43699462]
[1728308079840,1.35955688,147.06,146.99,20.0]
[1728308080344,1.35955688,147.06,146.98,20.26499342]
[1728308080715,1.35955688,147.06,147.0,19.43699462]
[1728308080922,1.35955688,147.06,147.01,1.36015397]
[1728308082324,15.7632,147.07,147.02,19.43699462]
[1728308082725,15.7632,147.07,147.03,1.36000227]
[1728308083130,15.7632,147.07,147.02,19.43699462]
[1728308083336,15.7632,147.07,147.03,1.36000263]
[1728308083542,15.7632,147.07,147.02,19.43699462]
[1728308084244,15.7632,147.07,147.04,19.43699462]
[1728308085651,15.7632,147.07,147.05,1.35985946]
[1728308085854,6.4359,147.09,147.06,19.43699462]
[1728308086219,6.4359,147.09,147.07,1.35976916]
[1728308086669,6.4359,147.09,147.08,19.43699462]
[1728308086866,16.5053,147.11,147.08,19.43699462]
[1728308087466,16.5053,147.11,147.09,1.35953144]
[1728308087869,6.0375,147.13,147.1,19.43699462]
[1728308088074,16.0429,147.15,147.11,1.35930197]
[1728308088624,17.40245688,147.15,147.1,19.43699462]
[1728308089064,17.40245688,147.15,147.09,20.0]
[1728308091657,17.40245688,147.15,147.1,20.79643595]
[1728308091855,17.40245688,147.15,147.1,19.43699462]
[1728308092376,17.40245688,147.15,147.08,19.43699462]
[1728308096383,24.19825688,147.15,147.08,19.43699462]
[1728308096578,17.40245688,147.15,147.08,19.43699462]
[1728308096917,17.40245688,147.15,147.09,1.35954446]
[1728308097068,17.40245688,147.15,147.1,19.43699462]
[1728308097270,16.0429,147.15,147.14,19.43699462]
[1728308097483,6.3125,147.16,147.14,19.43699462]
[1728308098387,1.35955688,147.18,147.14,19.43699462]
[1728308099137,22.1669,147.23,147.16,19.43699462]
[1728308099430,22.1669,147.23,147.18,19.43699462]
[1728308099600,1.35955688,147.22,147.18,19.43699462]
[1728308099787,22.1669,147.23,147.18,19.43699462]
[1728308100188,1.35955688,147.22,147.18,19.43699462]
[1728308100485,1.35955688,147.22,147.17,20.0]
[1728308100678,1.35955688,147.22,147.18,1.35868884]
[1728308101067,1.35955688,147.22,147.16,19.43699462]
[1728308101700,8.15245688,147.22,147.15,20.0]
[1728308101900,6.7942,147.19,147.08,6.0432]
[1728308102193,1.35955688,147.18,147.11,19.43699462]
[1728308102492,1.35955688,147.18,147.13,19.43699462]
[1728308102669,1.48504688,147.21,147.14,1.35900487]
[1728308103397,1.35955688,147.21,147.15,20.7959835]
[1728308103892,1.35955688,147.21,147.15,19.43699462]
[1728308104096,8.15265688,147.21,147.15,19.43699462]
[1728308104286,1.35955688,147.21,147.14,20.0]
[1728308104469,1.35955688,147.21,147.14,21.35908371]
[1728308104893,1.35955688,147.21,147.15,19.43699462]
[1728308105228,1.35955688,147.21,147.16,1.35891214]
[1728308105564,1.35955688,147.21,147.15,19.43699462]
[1728308105703,1.35955688,147.22,147.15,19.43699462]
[1728308106698,6.7935,147.2,147.14,20.0]
[1728308106873,1.35955688,147.19,147.13,19.43699462]
[1728308107074,1.35955688,147.18,147.11,19.43699462]
[1728308107382,1.35955688,147.18,147.12,20.0]
[1728308108068,6.5283,147.16,147.09,19.43699462]
[1728308108274,1.35955688,147.15,147.1,1.35939485]
[1728308108602,1.35955688,147.15,147.1,1.35934574]
[1728308108793,1.35955688,147.15,147.09,19.43699462]
[1728308109314,1.35955688,147.15,147.1,20.0]
[1728308110887,1.35955688,147.15,147.07,19.43699462]
[1728308111606,1.35955688,147.15,147.08,1.35946573]
[1728308111801,1.35955688,147.15,147.07,19.43699462]
[1728308112391,1.35955688,147.15,147.08,20.0]
[1728308112716,8.15555688,147.15,147.08,20.0]
[1728308113680,30.698774,147.14,147.05,19.43699462]
[1728308113886,1.35955688,147.13,147.06,1.35973048]
[1728308114410,1.35955688,147.13,147.05,19.43699462]
[1728308114601,1.35955688,147.13,147.06,1.35973181]
[1728308114807,1.35955688,147.13,147.06,21.35973181]
[1728308116291,16.0316,147.12,147.06,20.0]
[1728308116488,1.35955688,147.11,147.04,20.0]
[1728308117133,13.0089,147.1,147.04,20.0]